{"text_format":"1","workbook":"xlsx","n_sheets":7,"sheets":["基本入力","企業登録連絡票１","企業登録連絡票２","WEB事務申込書","印鑑登録票","事務管理者登録","企業ﾕｰｻﾞID"],"not_rendered":{"charts":0,"images":3,"macros":0,"external_links":2,"defined_names":83,"comments":1,"pivot_tables":0},"unopened":[],"bounds":{"document_bytes":16777216,"sheet_cells":100000,"rows_first":2000,"rows_last":500,"rows_between":2000,"halvings":0,"cell_chars":16384,"cell_head_chars":4096},"cells_cut":0,"cells_raw":0,"read":"whole","date_system":"1900"}

{"sheet":"基本入力","index":0,"n_rows":41,"n_cols":53,"rows_kept":41,"cut":false,"hidden":false,"merged":[[0,0,1,55],[4,1,5,13],[4,14,5,28],[4,32,5,54],[8,1,9,13],[8,14,9,28],[8,32,9,54],[18,1,19,13],[18,14,19,47],[18,48,19,50],[18,52,19,54],[10,1,11,13],[10,14,11,28],[10,32,11,54],[14,1,15,13],[14,14,15,47],[20,1,21,13],[20,14,21,47],[20,48,21,50],[20,52,21,54],[22,1,23,13],[22,14,23,47],[22,48,23,50],[22,52,23,54],[24,1,25,13],[24,14,25,47],[24,48,25,50],[24,52,25,54],[27,1,28,13],[27,14,28,27],[27,28,28,34],[27,35,28,47],[29,1,30,13],[29,14,30,47],[31,1,32,13],[31,14,32,47],[26,1,26,13],[26,14,26,47]]}
["企業型DC　事業所追加登録の基本（共通）項目"]
[]
[]
[null,"■依頼年月日"]
[null,"依頼年月日(西暦)",null,null,null,null,null,null,null,null,null,null,null,null,null,null,null,null,null,null,null,null,null,null,null,null,null,null,null,null,null,null,"注）西暦でご記入ください。"]
[]
[]
[null,"■制度開始（施行）日"]
[null,"施行日",null,null,null,null,null,null,null,null,null,null,null,null,null,null,null,null,null,null,null,null,null,null,null,null,null,null,null,null,null,null,"注）西暦でご記入ください。"]
[]
[null,"プラン適用日",null,null,null,null,null,null,null,null,null,null,null,null,{"$f":"DATE(YEAR(O9),MONTH(O9)-1,1)","v":{"$error":"#NUM!"}},null,null,null,null,null,null,null,null,null,null,null,null,null,null,null,null,null,"注）施行日の属する月の前月の1日"]
[]
[]
[null,"■プラン名（略称）　　　"]
[null,"プラン名"]
[]
[]
[null,"■企業（代表企業）名、依頼者名",null,null,null,null,null,null,null,null,null,null,null,null,null,null,null,null,null,null,null,null,null,null,null,null,null,null,null,null,null,null,null,null,null,null,null,null,null,null,null,null,null,null,null,null,null,null,null,"字数",null,null,"上限"]
[null,"企業名",null,null,null,null,null,null,null,null,null,null,null,null,null,null,null,null,null,null,null,null,null,null,null,null,null,null,null,null,null,null,null,null,null,null,null,null,null,null,null,null,null,null,null,null,null,null,{"$f":"LEN(O19)","v":0},null,null,null,35]
[]
[null,"企業名　ｶﾅ\n（半角ｶﾀｶﾅ入力）",null,null,null,null,null,null,null,null,null,null,null,null,null,null,null,null,null,null,null,null,null,null,null,null,null,null,null,null,null,null,null,null,null,null,null,null,null,null,null,null,null,null,null,null,null,null,{"$f":"LEN(O21)","v":0},null,null,null,50]
[]
[null,"企業名略称",null,null,null,null,null,null,null,null,null,null,null,null,null,null,null,null,null,null,null,null,null,null,null,null,null,null,null,null,null,null,null,null,null,null,null,null,null,null,null,null,null,null,null,null,null,null,{"$f":"LEN(O23)","v":0},null,null,null,15]
[]
[null,"企業名略称　ｶﾅ\n（半角ｶﾀｶﾅ入力）",null,null,null,null,null,null,null,null,null,null,null,null,null,null,null,null,null,null,null,null,null,null,null,null,null,null,null,null,null,null,null,null,null,null,null,null,null,null,null,null,null,null,null,null,null,null,{"$f":"LEN(O25)","v":0},null,null,null,20]
[]
[null,"登記住所"]
[null,"部署名",null,null,null,null,null,null,null,null,null,null,null,null,null,null,null,null,null,null,null,null,null,null,null,null,null,null,"役職名"]
[]
[null,"依頼者名"]
[]
[null,"連絡先電話番号"]
[]
[]
[null,"注）字数制限にご注意ください。　（濁点、半濁点は1文字としてカウント）"]
[null,"注）事務を代表企業等へ委託する場合は、別途「事務委託先届出書」をご提出ください。"]
[null,null,null,"・事務委託先担当者が取りまとめのIDを持っている場合は、「事務管理者登録」「企業ユーザーID」は"]
[null,null,null,null,"提出不要です。"]
[]
[null,"注）「企業登録連絡票１」「企業登録連絡票２」「WEB事務申込書」「印鑑登録票」「事務管理者登録」"]
[null,null,null,"「企業ユーザーID登録」シートを印刷し、企業登録印を押印のうえご提出ください。"]

{"sheet":"企業登録連絡票１","index":1,"n_rows":71,"n_cols":138,"rows_kept":71,"cut":false,"hidden":false,"merged":[[67,49,69,53],[67,54,69,58],[67,59,69,63],[67,64,69,68],[12,3,12,16],[12,17,12,58],[13,3,13,16],[13,17,13,31],[13,32,13,40],[13,41,13,58],[1,10,3,18],[2,3,2,8],[11,3,11,16],[8,24,8,32],[8,33,8,46],[8,47,8,55],[8,56,8,69],[11,47,11,55],[11,56,11,69],[11,17,11,46],[19,3,20,16],[19,17,19,20],[19,21,19,48],[19,49,20,60],[19,61,20,67],[19,68,20,69],[20,17,20,48],[14,3,14,16],[14,17,14,58],[15,3,15,16],[15,17,15,58],[17,3,18,16],[17,17,17,20],[17,21,17,69],[18,17,18,69],[21,74,23,96],[21,97,23,98],[23,3,25,16],[23,17,23,20],[23,21,23,69],[24,17,24,18],[24,19,24,28],[24,29,24,69],[25,17,25,69],[21,3,22,16],[21,17,22,34],[21,35,22,44],[21,45,22,48],[21,49,22,60],[21,61,22,65],[29,3,30,16],[29,17,29,20],[29,21,29,68],[29,74,30,96],[29,97,30,98],[30,17,30,69],[26,3,28,16],[26,17,26,20],[26,21,26,69],[26,74,28,96],[26,97,28,98],[27,17,27,18],[27,19,27,28],[27,29,27,69],[28,17,28,69],[31,3,33,16],[31,17,31,20],[31,21,31,68],[31,74,33,96],[31,97,33,98],[32,17,32,18],[32,19,32,28],[32,29,32,69],[33,17,33,69],[36,3,36,16],[36,17,36,18],[36,19,36,22],[36,23,36,24],[36,25,36,28],[34,3,34,16],[34,17,34,37],[34,38,34,47],[34,48,34,69],[35,3,35,16],[35,17,35,20],[35,23,35,24],[35,27,35,28],[35,31,35,37],[35,39,35,40],[36,29,36,47],[36,48,36,49],[36,50,36,53],[36,54,36,55],[36,56,36,59],[36,60,36,69],[35,43,35,44],[35,48,35,54],[35,57,35,58],[37,3,37,49],[37,50,37,69],[38,3,38,22],[38,23,38,24],[38,25,38,28],[38,29,38,30],[38,31,38,34],[38,35,38,39],[38,40,38,41],[38,42,38,43],[38,55,39,56],[38,57,39,58],[38,59,39,60],[38,61,39,62],[38,63,39,64],[38,65,39,69],[38,44,38,45],[38,46,38,47],[38,48,38,49],[38,50,39,50],[38,51,39,52],[38,53,39,54],[39,3,39,22],[39,24,39,48],[40,3,40,22],[40,23,40,24],[40,25,40,28],[40,29,40,30],[40,31,40,34],[40,35,40,39],[40,40,40,41],[40,42,40,43],[41,3,41,22],[41,23,41,49],[40,55,41,56],[40,57,41,58],[40,59,41,60],[40,61,41,62],[40,63,41,64],[40,65,41,69],[40,44,40,45],[40,46,40,47],[40,48,40,49],[40,50,41,50],[40,51,41,52],[40,53,41,54],[42,55,42,56],[42,57,42,58],[42,59,42,60],[42,61,42,62],[42,3,42,22],[42,23,42,24],[42,25,42,28],[42,29,42,30],[42,31,42,34],[42,35,42,49],[35,62,35,63],[21,66,22,69],[48,3,50,10],[48,11,48,14],[48,15,48,32],[48,33,50,38],[48,39,48,42],[48,43,48,69],[49,11,50,32],[49,39,50,69],[44,23,47,32],[44,33,47,42],[44,49,47,69],[45,15,47,16],[45,17,47,18],[45,19,47,20],[45,21,47,22],[45,43,47,44],[45,45,47,46],[45,47,47,48],[42,63,42,64],[44,3,47,14],[42,51,42,52],[42,53,42,54],[55,3,60,9],[55,10,57,13],[55,14,57,69],[58,10,60,10],[58,11,60,69],[65,3,65,13],[65,33,65,41],[51,43,54,69],[52,29,54,30],[52,31,54,32],[52,33,54,34],[52,35,54,36],[52,37,54,38],[52,39,54,40],[52,41,54,42],[51,3,54,10],[51,11,52,12],[51,13,52,16],[51,17,52,18],[51,19,52,22],[51,23,54,28],[53,11,54,12],[53,13,54,16]]}
[]
[null,null,null,null,null,null,null,null,null,null,"確定拠出年金"]
[null,null,null,"D03062",null,null,null,null,null,null,null,null,null,null,null,null,null,null,null,null,null,"企業（代表企業）登録連絡票（１／２）"]
[]
[]
[]
[]
[null,null,"大和証券株式株式会社",null,null,null,null,null,null,null,null,null,null,null,null,null,null,null,null,"御中"]
[null,null,null,null,null,null,null,null,null,null,null,null,null,null,null,null,null,null,null,null,null,null,null,null,"依頼年月日",null,null,null,null,null,null,null,null,{"$f":"基本入力!O5","v":"00:00:00"},null,null,null,null,null,null,null,null,null,null,null,null,null,"設立年月日",null,null,null,null,null,null,null,null,{"$f":"基本入力!O9","v":"00:00:00"}]
[]
[]
[null,null,null,"プラン名",null,null,null,null,null,null,null,null,null,null,null,null,null,{"$f":"基本入力!O15","v":0},null,null,null,null,null,null,null,null,null,null,null,null,null,null,null,null,null,null,null,null,null,null,null,null,null,null,null,null,null,"プラン適用日",null,null,null,null,null,null,null,null,{"$f":"基本入力!O11","v":{"$error":"#NUM!"}},null,null,null,null,null,null,null,null,null,null,null,null,null,null,null,null,null,null,null,null,null,null,null,null,null,null,null,null,null,null,null,null,null,null,null,null,null,null,null,null,null,null,null,null,null,null,null,null,null,null,null,null,null,null,null,null,null,null,null,null,null,null,null,null,null,null,null,null,null,null,null,null,null,null,null,null,null,null,null,"業種名・コード一覧"]
[null,null,null,"企業名　（加入事業主）",null,null,null,null,null,null,null,null,null,null,null,null,null,{"$f":"基本入力!O19","v":0},null,null,null,null,null,null,null,null,null,null,null,null,null,null,null,null,null,null,null,null,null,null,null,null,null,null,null,null,null,null,null,null,null,null,null,null,null,null,null,null,null,"（登録印）",null,null,null,null,null,null,null,null,null,null,null,null,null,null,null,null,null,null,null,null,null,null,null,null,null,null,null,null,null,null,null,null,null,null,null,null,null,null,null,null,null,null,null,null,null,null,null,null,null,null,null,null,null,null,null,null,null,null,null,null,null,null,null,null,null,null,null,null,null,null,null,null,null,null,null,null,1,"水産・農林業"]
[null,null,null,"部署名",null,null,null,null,null,null,null,null,null,null,null,null,null,{"$f":"基本入力!O28","v":0},null,null,null,null,null,null,null,null,null,null,null,null,null,null,"役職名",null,null,null,null,null,null,null,null,{"$f":"基本入力!AJ28","v":0},null,null,null,null,null,null,null,null,null,null,null,null,null,null,null,null,null,null,null,null,null,null,null,null,null,null,null,null,null,null,null,null,null,null,null,null,null,null,null,null,null,null,null,null,null,null,null,null,null,null,null,null,null,null,null,null,null,null,null,null,null,null,null,null,null,null,null,null,null,null,null,null,null,null,null,null,null,null,null,null,null,null,null,null,null,null,null,null,null,null,null,null,null,null,2,"鉱業"]
[null,null,null,"依頼者名",null,null,null,null,null,null,null,null,null,null,null,null,null,{"$f":"基本入力!O30","v":0},null,null,null,null,null,null,null,null,null,null,null,null,null,null,null,null,null,null,null,null,null,null,null,null,null,null,null,null,null,null,null,null,null,null,null,null,null,null,null,null,null,null,null,null,null,null,null,null,null,null,null,null,null,null,null,null,null,null,null,null,null,null,null,null,null,null,null,null,null,null,null,null,null,null,null,null,null,null,null,null,null,null,null,null,null,null,null,null,null,null,null,null,null,null,null,null,null,null,null,null,null,null,null,null,null,null,null,null,null,null,null,null,null,null,null,null,null,null,3,"建設"]
[null,null,null,"連絡先電話番号",null,null,null,null,null,null,null,null,null,null,null,null,null,{"$f":"基本入力!O32","v":0},null,null,null,null,null,null,null,null,null,null,null,null,null,null,null,null,null,null,null,null,null,null,null,null,null,null,null,null,null,null,null,null,null,null,null,null,null,null,null,null,null,null,null,null,null,null,null,null,null,null,null,null,null,null,null,null,null,null,null,null,null,null,null,null,null,null,null,null,null,null,null,null,null,null,null,null,null,null,null,null,null,null,null,null,null,null,null,null,null,null,null,null,null,null,null,null,null,null,null,null,null,null,null,null,null,null,null,null,null,null,null,null,null,null,null,null,null,null,4,"食料品"]
[null,null,null,null,null,null,null,null,null,null,null,null,null,null,null,null,null,null,null,null,null,null,null,null,null,null,null,null,null,null,null,null,null,null,null,null,null,null,null,null,null,null,null,null,null,null,null,null,null,null,null,null,null,null,null,null,null,null,null,null,null,null,null,null,null,null,null,null,null,null,null,null,null,null,null,null,null,null,null,null,null,null,null,null,null,null,null,null,null,null,null,null,null,null,null,null,null,null,null,null,null,null,null,null,null,null,null,null,null,null,null,null,null,null,null,null,null,null,null,null,null,null,null,null,null,null,null,null,null,null,null,null,null,null,null,null,5,"繊維製品"]
[null,null,null,"企業名",null,null,null,null,null,null,null,null,null,null,null,null,null,"フリガナ",null,null,null,{"$f":"基本入力!O21","v":0},null,null,null,null,null,null,null,null,null,null,null,null,null,null,null,null,null,null,null,null,null,null,null,null,null,null,null,null,null,null,null,null,null,null,null,null,null,null,null,null,null,null,null,null,null,null,null,null,null,null,null,null,null,null,null,null,null,null,null,null,null,null,null,null,null,null,null,null,null,null,null,null,null,null,null,null,null,null,null,null,null,null,null,null,null,null,null,null,null,null,null,null,null,null,null,null,null,null,null,null,null,null,null,null,null,null,null,null,null,null,null,null,null,null,6,"パルプ・紙"]
[null,null,null,null,null,null,null,null,null,null,null,null,null,null,null,null,null,{"$f":"基本入力!O19","v":0},null,null,null,null,null,null,null,null,null,null,null,null,null,null,null,null,null,null,null,null,null,null,null,null,null,null,null,null,null,null,null,null,null,null,null,null,null,null,null,null,null,null,null,null,null,null,null,null,null,null,null,null,null,null,null,null,null,null,null,null,null,null,null,null,null,null,null,null,null,null,null,null,null,null,null,null,null,null,null,null,null,null,null,null,null,null,null,null,null,null,null,null,null,null,null,null,null,null,null,null,null,null,null,null,null,null,null,null,null,null,null,null,null,null,null,null,null,null,7,"化学"]
[null,null,null,"企業名　略称",null,null,null,null,null,null,null,null,null,null,null,null,null,"フリガナ",null,null,null,{"$f":"基本入力!O25","v":0},null,null,null,null,null,null,null,null,null,null,null,null,null,null,null,null,null,null,null,null,null,null,null,null,null,null,null,"従業員数",null,null,null,null,null,null,null,null,null,null,null,null,null,null,null,null,null,null,"人",null,null,null,null,null,null,null,null,null,null,null,null,null,null,null,null,null,null,null,null,null,null,null,null,null,null,null,null,null,null,null,null,null,null,null,null,null,null,null,null,null,null,null,null,null,null,null,null,null,null,null,null,null,null,null,null,null,null,null,null,null,null,null,null,null,null,null,8,"医薬品"]
[null,null,null,null,null,null,null,null,null,null,null,null,null,null,null,null,null,{"$f":"基本入力!O23","v":0},null,null,null,null,null,null,null,null,null,null,null,null,null,null,null,null,null,null,null,null,null,null,null,null,null,null,null,null,null,null,null,null,null,null,null,null,null,null,null,null,null,null,null,null,null,null,null,null,null,null,null,null,null,null,null,null,null,null,null,null,null,null,null,null,null,null,null,null,null,null,null,null,null,null,null,null,null,null,null,null,null,null,null,null,null,null,null,null,null,null,null,null,null,null,null,null,null,null,null,null,null,null,null,null,null,null,null,null,null,null,null,null,null,null,null,null,null,null,9,"石油・石炭製品"]
[null,null,null,"業種名",null,null,null,null,null,null,null,null,null,null,null,null,null,null,null,null,null,null,null,null,null,null,null,null,null,null,null,null,null,null,null,"業種区分コード",null,null,null,null,null,null,null,null,null,null,null,null,null,"実施事業所数",null,null,null,null,null,null,null,null,null,null,null,null,null,null,null,null,"事業所",null,null,null,null,null,null,null,"業種は、社会保険事務所に届出た業種を指定します。業種区分コードは下表にてご確認のうえ指定してください。",null,null,null,null,null,null,null,null,null,null,null,null,null,null,null,null,null,null,null,null,null,null,null,null,null,null,null,null,null,null,null,null,null,null,null,null,null,null,null,null,null,null,null,null,null,null,null,null,null,null,null,null,null,null,null,null,null,null,null,null,null,10,"ゴム製品"]
[null,null,null,null,null,null,null,null,null,null,null,null,null,null,null,null,null,null,null,null,null,null,null,null,null,null,null,null,null,null,null,null,null,null,null,null,null,null,null,null,null,null,null,null,null,null,null,null,null,null,null,null,null,null,null,null,null,null,null,null,null,null,null,null,null,null,null,null,null,null,null,null,null,null,null,null,null,null,null,null,null,null,null,null,null,null,null,null,null,null,null,null,null,null,null,null,null,null,null,null,null,null,null,null,null,null,null,null,null,null,null,null,null,null,null,null,null,null,null,null,null,null,null,null,null,null,null,null,null,null,null,null,null,null,null,null,11,"ガラス・土石製品"]
[null,null,null,"登記住所",null,null,null,null,null,null,null,null,null,null,null,null,null,"フリガナ",null,null,null,null,null,null,null,null,null,null,null,null,null,null,null,null,null,null,null,null,null,null,null,null,null,null,null,null,null,null,null,null,null,null,null,null,null,null,null,null,null,null,null,null,null,null,null,null,null,null,null,null,null,null,null,null,null,null,null,null,null,null,null,null,null,null,null,null,null,null,null,null,null,null,null,null,null,null,null,null,null,null,null,null,null,null,null,null,null,null,null,null,null,null,null,null,null,null,null,null,null,null,null,null,null,null,null,null,null,null,null,null,null,null,null,null,null,null,12,"鉄鋼"]
[null,null,null,null,null,null,null,null,null,null,null,null,null,null,null,null,null,"〒",null,null,null,null,null,null,null,null,null,null,null,null,null,null,null,null,null,null,null,null,null,null,null,null,null,null,null,null,null,null,null,null,null,null,null,null,null,null,null,null,null,null,null,null,null,null,null,null,null,null,null,null,null,null,null,null,null,null,null,null,null,null,null,null,null,null,null,null,null,null,null,null,null,null,null,null,null,null,null,null,null,null,null,null,null,null,null,null,null,null,null,null,null,null,null,null,null,null,null,null,null,null,null,null,null,null,null,null,null,null,null,null,null,null,null,null,null,null,13,"非鉄金属"]
[null,null,null,null,null,null,null,null,null,null,null,null,null,null,null,null,null,{"$f":"基本入力!O27","v":0},null,null,null,null,null,null,null,null,null,null,null,null,null,null,null,null,null,null,null,null,null,null,null,null,null,null,null,null,null,null,null,null,null,null,null,null,null,null,null,null,null,null,null,null,null,null,null,null,null,null,null,null,null,null,null,null,null,null,null,null,null,null,null,null,null,null,null,null,null,null,null,null,null,null,null,null,null,null,null,null,null,null,null,null,null,null,null,null,null,null,null,null,null,null,null,null,null,null,null,null,null,null,null,null,null,null,null,null,null,null,null,null,null,null,null,null,null,null,14,"金属製品"]
[null,null,null,"厚生年金\n適用事業所所在地",null,null,null,null,null,null,null,null,null,null,null,null,null,"フリガナ",null,null,null,null,null,null,null,null,null,null,null,null,null,null,null,null,null,null,null,null,null,null,null,null,null,null,null,null,null,null,null,null,null,null,null,null,null,null,null,null,null,null,null,null,null,null,null,null,null,null,null,null,null,null,null,null,"社会保険事務所に届出た住所です。",null,null,null,null,null,null,null,null,null,null,null,null,null,null,null,null,null,null,null,null,null,null,null,null,null,null,null,null,null,null,null,null,null,null,null,null,null,null,null,null,null,null,null,null,null,null,null,null,null,null,null,null,null,null,null,null,null,null,null,null,null,15,"機械"]
[null,null,null,null,null,null,null,null,null,null,null,null,null,null,null,null,null,"〒",null,null,null,null,null,null,null,null,null,null,null,null,null,null,null,null,null,null,null,null,null,null,null,null,null,null,null,null,null,null,null,null,null,null,null,null,null,null,null,null,null,null,null,null,null,null,null,null,null,null,null,null,null,null,null,null,null,null,null,null,null,null,null,null,null,null,null,null,null,null,null,null,null,null,null,null,null,null,null,null,null,null,null,null,null,null,null,null,null,null,null,null,null,null,null,null,null,null,null,null,null,null,null,null,null,null,null,null,null,null,null,null,null,null,null,null,null,null,16,"電気機器"]
[null,null,null,null,null,null,null,null,null,null,null,null,null,null,null,null,null,null,null,null,null,null,null,null,null,null,null,null,null,null,null,null,null,null,null,null,null,null,null,null,null,null,null,null,null,null,null,null,null,null,null,null,null,null,null,null,null,null,null,null,null,null,null,null,null,null,null,null,null,null,null,null,null,null,null,null,null,null,null,null,null,null,null,null,null,null,null,null,null,null,null,null,null,null,null,null,null,null,null,null,null,null,null,null,null,null,null,null,null,null,null,null,null,null,null,null,null,null,null,null,null,null,null,null,null,null,null,null,null,null,null,null,null,null,null,null,17,"輸送用機器"]
[null,null,null,"担当部門名",null,null,null,null,null,null,null,null,null,null,null,null,null,"フリガナ",null,null,null,null,null,null,null,null,null,null,null,null,null,null,null,null,null,null,null,null,null,null,null,null,null,null,null,null,null,null,null,null,null,null,null,null,null,null,null,null,null,null,null,null,null,null,null,null,null,null,null,null,null,null,null,null,"御社の確定拠出年金全般の窓口部署をご記入ください。",null,null,null,null,null,null,null,null,null,null,null,null,null,null,null,null,null,null,null,null,null,null,null,null,null,null,null,null,null,null,null,null,null,null,null,null,null,null,null,null,null,null,null,null,null,null,null,null,null,null,null,null,null,null,null,null,null,null,null,null,null,18,"精密機器"]
[null,null,null,null,null,null,null,null,null,null,null,null,null,null,null,null,null,null,null,null,null,null,null,null,null,null,null,null,null,null,null,null,null,null,null,null,null,null,null,null,null,null,null,null,null,null,null,null,null,null,null,null,null,null,null,null,null,null,null,null,null,null,null,null,null,null,null,null,null,null,null,null,null,null,null,null,null,null,null,null,null,null,null,null,null,null,null,null,null,null,null,null,null,null,null,null,null,null,null,null,null,null,null,null,null,null,null,null,null,null,null,null,null,null,null,null,null,null,null,null,null,null,null,null,null,null,null,null,null,null,null,null,null,null,null,null,19,"その他製品"]
[null,null,null,"担当部門所在地",null,null,null,null,null,null,null,null,null,null,null,null,null,"フリガナ",null,null,null,null,null,null,null,null,null,null,null,null,null,null,null,null,null,null,null,null,null,null,null,null,null,null,null,null,null,null,null,null,null,null,null,null,null,null,null,null,null,null,null,null,null,null,null,null,null,null,null,null,null,null,null,null,"帳票等の送付先となります。",null,null,null,null,null,null,null,null,null,null,null,null,null,null,null,null,null,null,null,null,null,null,null,null,null,null,null,null,null,null,null,null,null,null,null,null,null,null,null,null,null,null,null,null,null,null,null,null,null,null,null,null,null,null,null,null,null,null,null,null,null,20,"電気・ガス業"]
[null,null,null,null,null,null,null,null,null,null,null,null,null,null,null,null,null,"〒",null,null,null,null,null,null,null,null,null,null,null,null,null,null,null,null,null,null,null,null,null,null,null,null,null,null,null,null,null,null,null,null,null,null,null,null,null,null,null,null,null,null,null,null,null,null,null,null,null,null,null,null,null,null,null,null,null,null,null,null,null,null,null,null,null,null,null,null,null,null,null,null,null,null,null,null,null,null,null,null,null,null,null,null,null,null,null,null,null,null,null,null,null,null,null,null,null,null,null,null,null,null,null,null,null,null,null,null,null,null,null,null,null,null,null,null,null,null,21,"陸運業"]
[null,null,null,null,null,null,null,null,null,null,null,null,null,null,null,null,null,null,null,null,null,null,null,null,null,null,null,null,null,null,null,null,null,null,null,null,null,null,null,null,null,null,null,null,null,null,null,null,null,null,null,null,null,null,null,null,null,null,null,null,null,null,null,null,null,null,null,null,null,null,null,null,null,null,null,null,null,null,null,null,null,null,null,null,null,null,null,null,null,null,null,null,null,null,null,null,null,null,null,null,null,null,null,null,null,null,null,null,null,null,null,null,null,null,null,null,null,null,null,null,null,null,null,null,null,null,null,null,null,null,null,null,null,null,null,null,22,"海運業"]
[null,null,null,"電話番号",null,null,null,null,null,null,null,null,null,null,null,null,null,null,null,null,null,null,null,null,null,null,null,null,null,null,null,null,null,null,null,null,null,null,"FAX番号",null,null,null,null,null,null,null,null,null,null,null,null,null,null,null,null,null,null,null,null,null,null,null,null,null,null,null,null,null,null,null,null,null,null,null,null,null,null,null,null,null,null,null,null,null,null,null,null,null,null,null,null,null,null,null,null,null,null,null,null,null,null,null,null,null,null,null,null,null,null,null,null,null,null,null,null,null,null,null,null,null,null,null,null,null,null,null,null,null,null,null,null,null,null,null,null,null,23,"空運業"]
[null,null,null,"法人設立年月日                                                                                                                                                                                                                                      ",null,null,null,null,null,null,null,null,null,null,null,null,null,null,null,null,null,"年",null,null,null,"月",null,null,null,"日",null,"決算日",null,null,null,null,null,null,null,null,null,"月",null,null,null,"日",null,null,"中間決算日",null,null,null,null,null,null,null,null,null,null,"月",null,null,null,null,"日",null,null,null,null,null,null,null,null,null,null,null,null,null,null,null,null,null,null,null,null,null,null,null,null,null,null,null,null,null,null,null,null,null,null,null,null,null,null,null,null,null,null,null,null,null,null,null,null,null,null,null,null,null,null,null,null,null,null,null,null,null,null,null,null,null,null,null,null,null,null,null,24,"倉庫・運輸関連業"]
[null,null,null,"加入者掛金導入有無",null,null,null,null,null,null,null,null,null,null,null,null,null,null,null,"０：なし",null,null,null,null,null,"１：あり",null,null,null,"個人型確定拠出年金並行加入",null,null,null,null,null,null,null,null,null,null,null,null,null,null,null,null,null,null,null,null,"０：なし",null,null,null,null,null,"１：あり",null,null,null,null,null,null,null,null,null,null,null,null,null,null,null,null,null,null,null,null,null,null,null,null,null,null,null,null,null,null,null,null,null,null,null,null,null,null,null,null,null,null,null,null,null,null,null,null,null,null,null,null,null,null,null,null,null,null,null,null,null,null,null,null,null,null,null,null,null,null,null,null,null,null,null,null,null,null,null,25,"通信業"]
[null,null,null,"確定拠出年金制度導入後、実施している制度があれば「１：あり」として下さい。",null,null,null,null,null,null,null,null,null,null,null,null,null,null,null,null,null,null,null,null,null,null,null,null,null,null,null,null,null,null,null,null,null,null,null,null,null,null,null,null,null,null,null,null,null,null,"制度移換を実施する場合は、\n制度移換年月日を記入してください。",null,null,null,null,null,null,null,null,null,null,null,null,null,null,null,null,null,null,null,null,null,null,null,null,null,null,null,null,null,null,null,null,null,null,null,null,null,null,null,null,null,null,null,null,null,null,null,null,null,null,null,null,null,null,null,null,null,null,null,null,null,null,null,null,null,null,null,null,null,null,null,null,null,null,null,null,null,null,null,null,null,null,null,null,null,26,"卸売業"]
[null,null,null,"厚生年金基金実施年月日",null,null,null,null,null,null,null,null,null,null,null,null,null,null,null,null,null,null,null,null,null,"０：なし",null,null,null,null,null,"１：あり",null,null,null,null,null,null,null,null,"年",null,null,null,"月",null,null,null,"日",null,null,"２０",null,null,null,"年",null,null,null,"月",null,null,null,"日",null,null,null,null,null,null,null,null,null,null,null,null,null,null,null,null,null,null,null,null,null,null,null,null,null,null,null,null,null,null,null,null,null,null,null,null,null,null,null,null,null,null,null,null,null,null,null,null,null,null,null,null,null,null,null,null,null,null,null,null,null,null,null,null,null,null,null,null,null,null,null,null,27,"小売業"]
[null,null,null,"厚生年金基金名",null,null,null,null,null,null,null,null,null,null,null,null,null,null,null,null,null,null,null,null,null,null,null,null,null,null,null,null,null,null,null,null,null,null,null,null,null,null,null,null,null,null,null,null,null,null,null,null,null,null,null,null,null,null,null,null,null,null,null,null,null,null,null,null,null,null,null,null,null,null,null,null,null,null,null,null,null,null,null,null,null,null,null,null,null,null,null,null,null,null,null,null,null,null,null,null,null,null,null,null,null,null,null,null,null,null,null,null,null,null,null,null,null,null,null,null,null,null,null,null,null,null,null,null,null,null,null,null,null,null,null,null,28,"銀行業"]
[null,null,null,"確定給付企業年金実施年月日",null,null,null,null,null,null,null,null,null,null,null,null,null,null,null,null,null,null,null,null,null,"０：なし",null,null,null,null,null,"１：あり",null,null,null,null,null,null,null,null,"年",null,null,null,"月",null,null,null,"日",null,null,"２０",null,null,null,"年",null,null,null,"月",null,null,null,"日",null,null,null,null,null,null,null,null,null,null,null,null,null,null,null,null,null,null,null,null,null,null,null,null,null,null,null,null,null,null,null,null,null,null,null,null,null,null,null,null,null,null,null,null,null,null,null,null,null,null,null,null,null,null,null,null,null,null,null,null,null,null,null,null,null,null,null,null,null,null,null,null,29,"証券・商品先物取引業"]
[null,null,null,"企業年金基金名\n※規約型の場合はブランクとします。",null,null,null,null,null,null,null,null,null,null,null,null,null,null,null,null,null,null,null,null,null,null,null,null,null,null,null,null,null,null,null,null,null,null,null,null,null,null,null,null,null,null,null,null,null,null,null,null,null,null,null,null,null,null,null,null,null,null,null,null,null,null,null,null,null,null,null,null,null,null,null,null,null,null,null,null,null,null,null,null,null,null,null,null,null,null,null,null,null,null,null,null,null,null,null,null,null,null,null,null,null,null,null,null,null,null,null,null,null,null,null,null,null,null,null,null,null,null,null,null,null,null,null,null,null,null,null,null,null,null,null,null,30,"その他金融業"]
[null,null,null,"退職給与制度",null,null,null,null,null,null,null,null,null,null,null,null,null,null,null,null,null,null,null,null,null,"０：なし",null,null,null,null,null,"１：あり",null,null,null,null,null,null,null,null,null,null,null,null,null,null,null,null,null,null,null,"２０",null,null,null,"年",null,null,null,"月",null,null,null,"日",null,"※",null,null,null,null,null,null,null,null,null,null,null,null,null,null,null,null,null,null,null,null,null,null,null,null,null,null,null,null,null,null,null,null,null,null,null,null,null,null,null,null,null,null,null,null,null,null,null,null,null,null,null,null,null,null,null,null,null,null,null,null,null,null,null,null,null,null,null,null,null,null,31,"その他金融業"]
[null,null,null,null,null,null,null,null,null,null,null,null,null,null,null,null,null,null,null,null,null,null,null,null,null,null,null,null,null,null,null,null,null,null,null,null,null,null,null,null,null,null,null,null,null,null,"※","制度移換初回入金予定年月日を記入して下さい。",null,null,null,null,null,null,null,null,null,null,null,null,null,null,null,null,null,null,null,null,null,null,null,null,null,null,null,null,null,null,null,null,null,null,null,null,null,null,null,null,null,null,null,null,null,null,null,null,null,null,null,null,null,null,null,null,null,null,null,null,null,null,null,null,null,null,null,null,null,null,null,null,null,null,null,null,null,null,null,null,null,null,null,null,null,null,null,null,32,"不動産業"]
[null,null,null,"送金先口座金融機関コード",null,null,null,null,null,null,null,null,null,null,null,null,null,null,null,null,null,null,null,null,null,null,null,null,null,null,null,null,null,"送金先口座支店コード",null,null,null,null,null,null,null,null,null,null,null,null,null,null,null,null,null,null,null,null,null,null,null,null,null,null,null,null,null,null,null,null,null,null,null,null,null,null,null,null,null,null,null,null,null,null,null,null,null,null,null,null,null,null,null,null,null,null,null,null,null,null,null,null,null,null,null,null,null,null,null,null,null,null,null,null,null,null,null,null,null,null,null,null,null,null,null,null,null,null,null,null,null,null,null,null,null,null,null,null,null,null,33,"サービス業"]
[]
[]
[]
[null,null,null,"送金先口座\n金融機関名",null,null,null,null,null,null,null,"フリガナ",null,null,null,null,null,null,null,null,null,null,null,null,null,null,null,null,null,null,null,null,null,"送金先口座\n支  店  名",null,null,null,null,null,"フリガナ"]
[]
[]
[null,null,null,"送金先口座\n預 金 種 別",null,null,null,null,null,null,null,null,null,"1：普通",null,null,null,null,null,"2：当座",null,null,null,"送  金  先\n口座番号"]
[]
[null,null,null,null,null,null,null,null,null,null,null,null,null,"9：その他"]
[]
[null,null,null,"送金先\n口座名義",null,null,null,null,null,null,"フリガナ"]
[]
[]
[]
[]
[]
[]
[]
[]
[]
[null,null,null,"大和証券　使用欄"]
[]
[]
[]
[]
[null,null,null,null,null,null,null,null,null,null,null,null,null,null,null,null,null,null,null,null,null,null,null,null,null,null,null,null,null,null,null,null,null,null,null,null,null,null,null,null,null,null,null,null,null,null,null,null,null,null,null,null,null,null,null,null,null,null,null,null,null,null,null,null,null,null,null,null,"D03062④19.01"]

{"sheet":"企業登録連絡票２","index":2,"n_rows":75,"n_cols":68,"rows_kept":75,"cut":false,"hidden":false,"merged":[[71,49,73,53],[71,54,73,58],[71,59,73,63],[71,64,73,68],[1,10,3,18],[2,3,2,8],[9,3,9,16],[9,17,9,45],[9,46,9,54],[9,55,9,69],[7,33,7,45],[12,3,12,16],[12,17,12,58],[13,3,13,16],[13,17,13,58],[15,3,18,14],[15,15,18,28],[10,3,10,16],[10,17,10,58],[11,3,11,16],[11,17,11,31],[11,32,11,40],[11,41,11,58],[19,3,22,14],[19,31,22,69],[21,15,22,16],[21,17,22,18],[21,19,22,20],[21,21,22,22],[21,23,22,24],[21,25,22,26],[21,27,22,28],[21,29,22,30],[23,3,26,14],[23,31,26,69],[25,15,26,16],[25,17,26,18],[25,19,26,20],[25,21,26,22],[25,23,26,24],[25,25,26,26],[25,27,26,28],[25,29,26,30],[31,3,41,9],[42,3,45,9],[42,10,45,11],[42,12,45,15],[42,16,45,17],[42,18,45,21],[27,48,28,49],[27,50,28,54],[28,30,28,31],[28,32,28,38],[28,39,28,40],[28,41,28,47],[27,3,28,14],[27,15,28,16],[27,17,28,21],[27,22,28,27],[27,28,28,29],[27,30,27,47],[53,3,53,4],[53,5,53,11],[53,13,53,19],[53,21,53,27],[53,29,53,35],[53,37,53,43],[42,22,43,33],[44,24,45,33],[44,49,45,60],[46,3,49,9],[46,10,49,11],[46,12,49,15],[46,16,49,17],[46,18,49,21],[54,46,56,69],[55,3,55,4],[55,5,55,11],[55,13,55,19],[55,21,55,27],[55,29,55,35],[55,37,55,43],[56,3,56,4],[56,5,56,11],[56,13,56,19],[54,3,54,4],[54,5,54,11],[54,13,54,19],[54,21,54,27],[54,29,54,35],[54,37,54,43],[56,21,56,27],[56,29,56,35],[56,37,56,43],[57,46,61,69],[58,3,58,4],[58,5,58,11],[58,13,58,19],[58,21,58,27],[58,29,58,35],[58,37,58,43],[59,3,59,4],[59,5,59,11],[59,13,59,19],[57,3,57,4],[57,5,57,11],[57,13,57,19],[57,21,57,27],[57,29,57,35],[57,37,57,43],[59,37,59,43],[60,3,60,4],[60,5,60,11],[60,13,60,19],[60,21,60,27],[60,29,60,35],[60,37,60,43],[64,7,68,69],[44,61,45,69],[44,34,45,48],[62,46,63,69],[64,2,68,6],[69,3,69,13],[69,33,69,41],[7,24,7,32],[7,55,7,69],[7,46,7,54],[62,3,62,4],[62,5,62,11],[62,13,62,19],[62,21,62,27],[62,29,62,35],[62,37,62,43],[61,3,61,4],[61,5,61,11],[61,13,61,19],[61,21,61,27],[61,29,61,35],[61,37,61,43],[59,21,59,27],[59,29,59,35]]}
[]
[null,null,null,null,null,null,null,null,null,null,"確定拠出年金"]
[null,null,null,"D03062",null,null,null,null,null,null,null,null,null,null,null,null,null,null,null,null,null,"企業（代表企業）登録連絡票（２／２）"]
[]
[]
[]
[null,null,"大和証券株式株式会社",null,null,null,null,null,null,null,null,null,null,null,null,null,null,null,null,"御中"]
[null,null,null,null,null,null,null,null,null,null,null,null,null,null,null,null,null,null,null,null,null,null,null,null,"依頼年月日",null,null,null,null,null,null,null,null,{"$f":"基本入力!O5","v":"00:00:00"},null,null,null,null,null,null,null,null,null,null,null,null,"設立年月日",null,null,null,null,null,null,null,null,{"$f":"基本入力!O9","v":"00:00:00"}]
[]
[null,null,null,"プラン名",null,null,null,null,null,null,null,null,null,null,null,null,null,{"$f":"基本入力!O15","v":0},null,null,null,null,null,null,null,null,null,null,null,null,null,null,null,null,null,null,null,null,null,null,null,null,null,null,null,null,"プラン適用日",null,null,null,null,null,null,null,null,{"$f":"基本入力!O11","v":{"$error":"#NUM!"}}]
[null,null,null,"企業名　（加入事業主）",null,null,null,null,null,null,null,null,null,null,null,null,null,{"$f":"基本入力!O19","v":0},null,null,null,null,null,null,null,null,null,null,null,null,null,null,null,null,null,null,null,null,null,null,null,null,null,null,null,null,null,null,null,null,null,null,null,null,null,null,null,null,null,"（登録印）"]
[null,null,null,"部署名",null,null,null,null,null,null,null,null,null,null,null,null,null,{"$f":"基本入力!O28","v":0},null,null,null,null,null,null,null,null,null,null,null,null,null,null,"役職名",null,null,null,null,null,null,null,null,{"$f":"基本入力!AJ28","v":0}]
[null,null,null,"依頼者名",null,null,null,null,null,null,null,null,null,null,null,null,null,{"$f":"基本入力!O30","v":0}]
[null,null,null,"連絡先電話番号",null,null,null,null,null,null,null,null,null,null,null,null,null,{"$f":"基本入力!O32","v":0}]
[]
[null,null,null,"Ｗｅｂオープン日"]
[]
[]
[]
[null,null,null,"未加入者向け\nキーワード",null,null,null,null,null,null,null,null,null,null,null,null,null,null,null,null,null,null,null,null,null,null,null,null,null,null,null,"未加入者がダイワ年金クラブホームページへログインするためのキーワードを設定します。半角英数字８文字以内のキーワードを登録してください（記号は使用できません）。※キーワードの指定がない場合は、「401k」（半角英数字）と設定されます。"]
[]
[null,null,null,null,null,null,null,null,null,null,null,null,null,null,null,null,null,null,null,null,null,null,null,4,null,0,null,1,null,"ｋ"]
[]
[null,null,null,"企業事務局向け\nキーワード",null,null,null,null,null,null,null,null,null,null,null,null,null,null,null,null,null,null,null,null,null,null,null,null,null,null,null,"企業事務局がダイワ年金クラブホームページへログインするためのキーワードを設定します。半角英数字８文字以内のキーワードを登録してください（記号は使用できません）。※キーワードの指定がない場合は、「401DC」（半角英数字）と設定されます。"]
[]
[null,null,null,null,null,null,null,null,null,null,null,null,null,null,null,null,null,null,null,null,null,4,null,0,null,1,null,"D",null,"C"]
[]
[null,null,null,"想定利回り",null,null,null,null,null,null,null,null,null,null,null,null,null,"1：あり",null,null,null,null,0,null,null,null,null,null,"％",null,"「1：あり」の場合、Ｗｅｂで表示を",null,null,null,null,null,null,null,null,null,null,null,null,null,null,null,null,null,null,null,"２：なし"]
[null,null,null,null,null,null,null,null,null,null,null,null,null,null,null,null,null,null,null,null,null,null,null,null,null,null,null,null,null,null,null,null,"する",null,null,null,null,null,null,null,null,"しない"]
[]
[null,null,"★印の項目には○印・ご記入をお願いします。"]
[null,null,null,"WEB事務\n利用申込",null,null,null,null,null,null,null,"当社（事業主）は次の事項を確認のうえ、この帳票により「ＷＥＢ事務サービス」の利用を申し込みます。"]
[]
[null,null,null,null,null,null,null,null,null,null,"1.","事業主は、加入者等に関する事項の諸通知内容の登録・変更方法として、「運営管理業務委託契約書」に規定する方法に"]
[null,null,null,null,null,null,null,null,null,null,null,"「WEB事務サービス」を加えることとし、「WEB事務サービスのご利用規定（企業用）」を承認したうえで、「WEB事務サービス」"]
[null,null,null,null,null,null,null,null,null,null,null,"を利用することを申し込みます。"]
[null,null,null,null,null,null,null,null,null,null,2,"事業主は、「ＷＥＢ事務サービス」による諸通知内容の登録・変更については、全て事業主の責任に基づいて行い、"]
[null,null,null,null,null,null,null,null,null,null,null,"通知内容の誤りによって生じた損害については、大和証券株式会社が賠償する責任を負わないことに同意します。"]
[null,null,null,null,null,null,null,null,null,null,3,"事業主は、日本レコード・キーピング･ネットワーク株式会社に通知した情報を運営管理機関が照会することに同意します。"]
[null,null,null,null,null,null,null,null,null,null,4,"事業主は、事務代行企業を使用する場合は、事務代行企業に「ＷＥＢ事務サービスのご利用規定（企業用）」を遵守させる"]
[null,null,null,null,null,null,null,null,null,null,null,"ことに同意します。"]
[]
[null,null,null,"事務グループ登録★",null,null,null,null,null,null,null,null,"しない",null,null,null,null,null,"する",null,null,null,"「する」を選択した場合",null,null,null,null,null,null,null,null,null,null,null,"※1"]
[]
[null,null,null,null,null,null,null,null,null,null,null,null,null,null,null,null,null,null,null,null,null,null,null,null,"とりまとめ企業名",null,null,null,null,null,null,null,null,null,null,null,null,null,null,null,null,null,null,null,null,null,null,null,null,"とりまとめ企業コード"]
[]
[null,null,null,"ダウンロード機能を利用★",null,null,null,null,null,null,null,null,"しない",null,null,null,null,null,"する"]
[null,null,null,null,null,null,null,null,null,null,null,null,null,null,null,null,null,null,null,null,null,null,null,null,null,null,"※1「被とりまとめ企業」から「とりまとめ企業」に対する「業務委託先届出書」を別途ご提出いただきます。"]
[]
[]
[]
[null,null,"●以下は、加入者情報のダウンロード機能を利用する企業のみご記入ください。"]
[null,null,"グローバルＩＰアドレスの届出※2"]
[null,null,null,1,null,null,null,null,null,null,null,null,"・",null,null,null,null,null,null,null,"・",null,null,null,null,null,null,null,"・",null,null,null,null,null,null,null,"～",null,null,null,null,null,null,null,null,"※２　グローバルＩＰアドレスについて"]
[null,null,null,2,null,null,null,null,null,null,null,null,"・",null,null,null,null,null,null,null,"・",null,null,null,null,null,null,null,"・",null,null,null,null,null,null,null,"～",null,null,null,null,null,null,null,null,"・","グローバルＩＰアドレスをお届出いただかない場合には原則としてダウンロード機能が使用できません。"]
[null,null,null,3,null,null,null,null,null,null,null,null,"・",null,null,null,null,null,null,null,"・",null,null,null,null,null,null,null,"・",null,null,null,null,null,null,null,"～"]
[null,null,null,4,null,null,null,null,null,null,null,null,"・",null,null,null,null,null,null,null,"・",null,null,null,null,null,null,null,"・",null,null,null,null,null,null,null,"～"]
[null,null,null,5,null,null,null,null,null,null,null,null,"・",null,null,null,null,null,null,null,"・",null,null,null,null,null,null,null,"・",null,null,null,null,null,null,null,"～",null,null,null,null,null,null,null,null,"・","グローバルＩＰアドレスをお届出いただかない場合でも担当者と承認者を区分して第三者がダウンロードできない仕組みとすることは可能です。（ご希望の場合にはサポートデスクにご連絡下さい。）"]
[null,null,null,6,null,null,null,null,null,null,null,null,"・",null,null,null,null,null,null,null,"・",null,null,null,null,null,null,null,"・",null,null,null,null,null,null,null,"～"]
[null,null,null,7,null,null,null,null,null,null,null,null,"・",null,null,null,null,null,null,null,"・",null,null,null,null,null,null,null,"・",null,null,null,null,null,null,null,"～"]
[null,null,null,8,null,null,null,null,null,null,null,null,"・",null,null,null,null,null,null,null,"・",null,null,null,null,null,null,null,"・",null,null,null,null,null,null,null,"～"]
[null,null,null,9,null,null,null,null,null,null,null,null,"・",null,null,null,null,null,null,null,"・",null,null,null,null,null,null,null,"・",null,null,null,null,null,null,null,"～"]
[null,null,null,10,null,null,null,null,null,null,null,null,"・",null,null,null,null,null,null,null,"・",null,null,null,null,null,null,null,"・",null,null,null,null,null,null,null,"～",null,null,null,null,null,null,null,null,"・","グローバルＩＰアドレスは、単位指定と範囲指定の組み合わせで10アドレスまで指定できます。"]
[]
[null,null,"通信欄"]
[]
[]
[]
[]
[null,null,null,"大和証券　使用欄"]
[]
[]
[]
[]
[null,null,null,null,null,null,null,null,null,null,null,null,null,null,null,null,null,null,null,null,null,null,null,null,null,null,null,null,null,null,null,null,null,null,null,null,null,null,null,null,null,null,null,null,null,null,null,null,null,null,null,null,null,null,null,null,null,null,null,null,null,null,null,null,null,null,null,"D03062④19.01"]

{"sheet":"WEB事務申込書","index":3,"n_rows":91,"n_cols":71,"rows_kept":91,"cut":false,"hidden":false,"merged":[[0,19,4,71],[1,8,3,15],[2,2,2,5],[9,2,10,8],[9,9,9,10],[9,11,10,39],[9,40,10,42],[9,44,11,54],[10,55,11,56],[10,57,11,58],[16,3,16,70],[10,59,11,60],[10,61,11,62],[10,63,11,64],[10,65,11,66],[10,67,11,68],[10,69,11,70],[11,2,11,8],[11,9,11,39],[13,3,13,70],[14,2,15,2],[14,3,15,70],[17,3,17,70],[18,3,19,70],[21,2,24,8],[21,44,23,51],[21,52,21,54],[21,55,23,57],[21,58,23,59],[21,60,23,62],[21,63,23,64],[21,65,23,67],[21,68,23,70],[22,9,24,36],[22,52,23,54],[34,23,35,24],[34,25,35,70],[25,2,28,8],[25,9,26,9],[26,44,28,51],[26,52,26,54],[26,55,28,57],[30,2,35,8],[31,9,32,10],[31,11,32,12],[31,13,32,14],[31,15,32,16],[34,9,35,10],[34,11,35,12],[34,13,35,14],[34,15,35,16],[82,24,84,38],[82,40,84,54],[82,56,84,70],[26,63,28,64],[26,65,28,67],[26,68,28,70],[27,9,28,36],[27,52,28,54],[26,58,28,59],[26,60,28,62],[31,17,32,18],[31,19,32,20],[31,21,32,70],[34,17,35,18],[34,19,35,20],[34,21,35,22]]}
[null,null,null,null,null,null,null,null,null,null,null,null,null,null,null,null,null,null,null,"　　　ＷＥＢ事務　利用企業利用申込書"]
[null,null,null,null,null,null,null,null,"確定拠出年金"]
[null,null,"10007"]
[]
[]
[]
[null,"● 太枠内をご記入ください。",null,null,null,null,null,null,null,null,null,null,null,null,null,null,null,null,null,null,null,null,null,null,null,null,null,null,null,null,null,null,null,null,null,null,null,"● 選択肢のある項目については、該当する選択肢左の□をチェックしてください。"]
[null,"● ★のある項目は必ず、☆のある項目はコードが確定している場合は必ず、ご記入ください。",null,null,null,null,null,null,null,null,null,null,null,null,null,null,null,null,null,null,null,null,null,null,null,null,null,null,null,null,null,null,null,null,null,null,null,"● 太枠内は企業の担当者が、細枠内は運管の担当者がご記入ください。"]
[]
[null,null,"運営管理  \n機　関　名",null,null,null,null,null,null,"★",null,"大和証券株式会社",null,null,null,null,null,null,null,null,null,null,null,null,null,null,null,null,null,null,null,null,null,null,null,null,null,null,null,null,"御中",null,null,null,"運営管理機関\nコード"]
[null,null,null,null,null,null,null,null,null,null,null,null,null,null,null,null,null,null,null,null,null,null,null,null,null,null,null,null,null,null,null,null,null,null,null,null,null,null,null,null,null,null,null,null,null,null,null,null,null,null,null,null,null,null,null,"2",null,"0",null,"0",null,"0",null,"0",null,"0",null,"0",null,"2"]
[null,null,"(記録関連）",null,null,null,null,null,null,"　日本レコード・キーピング・ネットワーク株式会社",null,null,null,null,null,null,null,null,null,null,null,null,null,null,null,null,null,null,null,null,null,null,null,null,null,null,null,null,null,null,"御中"]
[]
[null,null,"・","事業主は、加入者等に関する事項の諸通知内容の登録・変更方法として、「運営管理業務委託契約書」に規定する方法に"]
[null,null,null,"「ＷＥＢ事務サービス」を加えることとし、「ＷＥＢ事務サービスのご利用規定（企業用）」を承認したうえで、「ＷＥＢ事務サービス」を\n利用することを申し込みます。"]
[]
[null,null,"・","事業主は、「ＷＥＢ事務サービス」による諸通知内容の登録・変更については、全て事業主の責任に基づいて行うことに同意します。"]
[null,null,"・","事業主は、日本レコード・キーピング・ネットワーク株式会社に通知した情報を運営管理機関が照会することに同意します。"]
[null,null,"・","事業主は、事務取扱企業を使用する場合は、事務取扱企業に「ＷＥＢ事務サービスのご利用規定（企業用）」を遵守させることに同意します。"]
[]
[]
[null,null,"依頼者\n所在地",null,null,null,null,null,null,"★",null,null,null,null,null,null,null,null,null,null,null,null,null,null,null,null,null,null,null,null,null,null,null,null,null,null,null,null,null,null,null,null,null,null,"\n依頼年月日\n(西暦）",null,null,null,null,null,null,null,"★",null,null,null,null,null,"年",null,null,null,null,"月",null,null,null,null,"日"]
[null,null,null,null,null,null,null,null,null,{"$f":"基本入力!O27","v":0},null,null,null,null,null,null,null,null,null,null,null,null,null,null,null,null,null,null,null,null,null,null,null,null,null,null,null,null,null,null,null,null,null,null,null,null,null,null,null,null,null,null,20]
[]
[]
[null,null,"依頼者名",null,null,null,null,null,null,"★"]
[null,null,null,null,null,null,null,null,null,null,null,null,null,null,null,null,null,null,null,null,null,null,null,null,null,null,null,null,null,null,null,null,null,null,null,null,null,null,null,null,null,null,null,null,"\n適用開始日\n(西暦）",null,null,null,null,null,null,null,"★",null,null,null,null,null,"年",null,null,null,null,"月",null,null,null,null,"日"]
[null,null,null,null,null,null,null,null,null,{"$f":"基本入力!O19","v":0},null,null,null,null,null,null,null,null,null,null,null,null,null,null,null,null,null,null,null,null,null,null,null,null,null,null,null,null,null,null,null,null,null,null,null,null,null,null,null,null,null,null,20]
[]
[]
[null,"　","利用企業　",null,null,null,null,null,null,"プラン番号☆",null,null,null,null,null,null,null,null,null,null,null,"プラン名★"]
[null,null,null,null,null,null,null,null,null,null,null,null,null,null,null,null,null,null,null,null,null,{"$f":"基本入力!O15","v":0}]
[]
[null,null,null,null,null,null,null,null,null,"企業コード☆",null,null,null,null,null,null,null,null,null,null,null,null,null,null,null,"企業名★"]
[null,null,null,null,null,null,null,null,null,null,null,null,null,null,null,null,null,null,null,null,null,null,null,null,null,{"$f":"基本入力!O19","v":0}]
[]
[]
[]
[]
[]
[]
[]
[]
[]
[]
[]
[]
[]
[]
[]
[]
[]
[]
[]
[]
[]
[]
[]
[]
[]
[]
[]
[]
[]
[]
[]
[]
[]
[]
[]
[]
[]
[]
[]
[]
[]
[]
[]
[]
[]
[]
[null,null,null,null,null,null,null,null,null,null,null,null,null,null,null,null,null,null,null,null,null,null,null,null,"ＮＲＫネットワーク特記欄",null,null,null,null,null,null,null,null,null,null,null,null,null,null,null,"運営管理機関特記欄",null,null,null,null,null,null,null,null,null,null,null,null,null,null,null,"企業特記欄"]
[]
[]
[]
[null,null,null,null,null,null,null,null,null,null,null,null,null,null,null,null,null,null,null,null,null,null,null,null,"ＮＲＫネットワーク使用欄",null,null,null,null,null,null,null,null,null,null,null,null,null,null,null,"運営管理機関使用欄",null,null,null,null,null,null,null,null,null,null,null,null,null,null,null,"企業使用欄"]
[]
[]
[]
[]
["　　　企業→運営管理機関→ＮＲＫネットワーク",null,null,null,null,null,null,null,null,null,null,null,null,null,null,null,null,null,null,null,null,null,null,null,null,null,null,null,null,null,null,null,null,null,null,null,null,null,null,null,null,null,null,null,null,null,null,null,"　",null,null,null,null,null,null,null,null,null,null,null,null,null,null,null,null,null,null,null,null,null,"保存期間10年　10007②15.01"]

{"sheet":"印鑑登録票","index":4,"n_rows":80,"n_cols":65,"rows_kept":80,"cut":false,"hidden":false,"merged":[[11,27,14,33],[11,34,14,70],[0,19,4,71],[1,8,3,15],[2,2,2,5],[9,47,9,55],[9,56,9,70],[23,4,24,5],[23,6,24,24],[23,27,26,33],[23,34,26,57],[25,4,26,5],[15,27,18,33],[15,34,18,70],[19,27,22,33],[19,34,22,57],[19,58,26,70],[75,66,78,70],[25,6,26,24],[36,27,37,44],[38,27,46,44],[71,1,71,13],[73,40,73,54],[73,56,73,70],[75,40,78,44],[75,45,78,49],[75,50,78,54],[75,56,78,60],[75,61,78,65],[52,4,57,70]]}
[null,null,null,null,null,null,null,null,null,null,null,null,null,null,null,null,null,null,null,"　　印鑑登録票（企業用）"]
[null,null,null,null,null,null,null,null,"確定拠出年金"]
[null,null,"D03070"]
[]
[]
[]
[null,null,null,null,null,"● 太枠内をご記入ください。",null,null,null,null,null,null,null,null,null,null,null,null,null,null,null,null,null,null,null,null,null,null,null,null,"● 選択肢のある項目については、該当する選択肢左の空欄にＶをご記入ください。"]
[]
[]
[null,null,null,"大和証券株式会社",null,null,null,null,null,null,null,null,null,null,null,null,null,"御中",null,null,null,null,null,null,null,null,null,null,null,null,null,null,null,null,null,null,null,null,null,null,null,null,null,null,null,null,null,"依頼年月日\n(西暦)",null,null,null,null,null,null,null,null,{"$f":"基本入力!O5","v":"00:00:00"}]
[]
[null,null,null,null,null,null,null,null,null,null,null,null,null,null,null,null,null,null,null,null,null,null,null,null,null,null,null,"企業名",null,null,null,null,null,null,{"$f":"基本入力!O19","v":0}]
[]
[]
[]
[null,null,null,null,null,null,null,null,null,null,null,null,null,null,null,null,null,null,null,null,null,null,null,null,null,null,null,"企業住所",null,null,null,null,null,null,{"$f":"基本入力!O27","v":0}]
[]
[]
[]
[null,null,null,null,null,null,null,null,null,null,null,null,null,null,null,null,null,null,null,null,null,null,null,null,null,null,null,"代表者名",null,null,null,null,null,null,null,null,null,null,null,null,null,null,null,null,null,null,null,null,null,null,null,null,null,null,null,null,null,null,"（代表印）"]
[]
[null,null,null,null,"■申請区分★"]
[null,null,null,null,null,"（どちらかに",null,null,null,null,null,"V","をつけてください）"]
[null,null,null,null,"V",null,"初回登録",null,null,null,null,null,null,null,null,null,null,null,null,null,null,null,null,null,null,null,null,"連   絡   先\n電話番号"]
[]
[null,null,null,null,null,null,"既登録に対する変更"]
[]
[]
[null,null,null,null,null,null,null,null,null,null,null,null,null,null,null,null,null,null,null,null,null,null,null,null,null,null,null,null,null,null,null,null,null,null,null,null,null,null,null,null,null,null,null,"※「既登録に対する変更」の場合は、旧登録印を押印します。"]
[]
[]
[null,null,null,null,"貴社への書類提出（契約締結、変更関係に係る書類は除く）に際しては、下記の印鑑を使用します。"]
[]
[]
[]
[]
[null,null,null,null,null,null,null,null,null,null,null,null,null,null,null,null,null,null,null,null,null,null,null,null,null,null,null,"登　　録　　印"]
[]
[]
[]
[]
[]
[]
[]
[]
[]
[]
[]
[]
[]
[]
[null,null,null,null,"既登録に対する変更の理由　※なお、旧印紛失の際は印鑑証明書を添付してくださいますよう、よろしくお願いいたします。"]
[]
[]
[]
[]
[]
[]
[]
[]
[]
[]
[]
[]
[]
[]
[]
[]
[]
[]
[]
[null,"大和証券　使用欄"]
[]
[]
[]
[]
[]
[]
[]
[null,null,null,null,null,null,null,null,null,null,null,null,null,null,null,null,null,null,null,null,null,null,null,null,null,null,null,null,null,null,null,null,null,null,null,null,null,null,null,null,null,null,null,null,null,null,null,null,null,null,null,null,null,null,null,null,null,null,null,null,null,null,null,null,"D03070②15.10"]

{"sheet":"事務管理者登録","index":5,"n_rows":87,"n_cols":65,"rows_kept":87,"cut":false,"hidden":false,"merged":[[82,53,85,57],[82,58,85,62],[82,63,85,68],[17,32,20,32],[17,33,20,37],[17,38,20,38],[17,39,20,43],[17,44,20,45],[17,46,20,50],[82,36,85,40],[82,41,85,45],[82,46,85,50],[55,3,56,10],[0,16,4,68],[1,7,3,14],[2,1,2,4],[6,1,6,9],[6,11,6,12],[6,13,6,14],[6,15,6,16],[6,17,6,18],[6,19,6,20],[6,21,6,22],[17,24,20,30],[6,45,6,46],[6,47,6,48],[6,49,6,50],[9,24,11,30],[9,33,11,67],[11,1,13,22],[12,24,16,30],[12,33,16,53],[12,55,20,68],[14,1,16,22],[6,23,6,24],[6,27,6,35],[6,37,6,38],[6,39,6,40],[6,41,6,42],[6,43,6,44],[25,21,27,22],[25,23,27,24],[28,1,30,8],[28,10,30,67],[32,3,34,10],[32,11,34,29],[32,30,34,68],[22,19,24,20],[22,21,24,28],[22,30,24,67],[25,1,27,8],[25,9,27,10],[25,11,27,12],[25,13,27,14],[25,15,27,16],[25,17,27,18],[25,19,27,20],[22,1,24,8],[22,9,24,10],[22,11,24,12],[22,13,24,14],[22,15,24,16],[22,17,24,18],[35,54,36,68],[36,11,38,29],[37,30,38,37],[37,38,37,57],[37,58,38,68],[38,38,38,57],[25,25,27,68],[35,1,40,2],[35,11,35,14],[35,15,35,29],[35,30,36,37],[35,38,36,52],[35,53,36,53],[39,11,40,15],[39,16,40,29],[39,30,40,37],[39,38,40,68],[37,3,38,10],[41,54,42,68],[42,11,44,29],[43,30,44,37],[43,38,43,57],[43,58,44,68],[44,38,44,57],[41,1,46,2],[41,11,41,14],[41,15,41,29],[41,30,42,37],[41,38,42,52],[41,53,42,53],[45,11,46,15],[45,16,46,29],[45,30,46,37],[45,38,46,68],[43,3,44,10],[47,1,52,2],[47,11,47,14],[47,15,47,29],[47,30,48,37],[47,38,48,52],[47,53,48,53],[51,11,52,15],[51,16,52,29],[51,30,52,37],[51,38,52,68],[49,3,50,10],[53,38,54,52],[53,53,54,53],[57,11,58,15],[57,16,58,29],[57,30,58,37],[57,38,58,68],[47,54,48,68],[48,11,50,29],[49,30,50,37],[49,38,49,57],[49,58,50,68],[50,38,50,57],[76,1,79,68],[70,1,71,22],[70,23,71,35],[70,36,71,68],[72,1,73,22],[72,23,73,35],[72,36,73,68],[66,1,67,22],[66,23,67,35],[66,36,67,68],[68,1,69,22],[68,23,69,35],[68,36,69,68],[53,54,54,68],[54,11,56,29],[55,30,56,37],[55,38,55,57],[55,58,56,68],[56,38,56,57],[53,1,58,2],[53,11,53,14],[53,15,53,29],[53,30,54,37]]}
[null,null,null,null,null,null,null,null,null,null,null,null,null,null,null,null,"事務管理者登録　兼　ＷＥＢ事務ユーザーＩＤ登録依頼書"]
[null,null,null,null,null,null,null,"確定拠出年金"]
[null,"XXXXX"]
[]
[]
[]
[null,"依頼年月日\n(西暦)",null,null,null,null,null,null,null,null,null,"２０",null,null,null,"年",null,null,null,"月",null,null,null,"日",null,null,null,"適用日\n(西暦)",null,null,null,null,null,null,null,null,null,"２０",null,null,null,"年",null,null,null,"月",null,null,null,"日"]
[]
[]
[null,"● 太枠内をご記入ください。",null,null,null,null,null,null,null,null,null,null,null,null,null,null,null,null,null,null,null,null,null,null,"企業名",null,null,null,null,null,null,null,null,{"$f":"基本入力!O19","v":0}]
[null,"● ★のある項目は必ずご記入ください。"]
[null,"● 選択肢のある項目については、該当する項目を\n    選択してください。"]
[null,null,null,null,null,null,null,null,null,null,null,null,null,null,null,null,null,null,null,null,null,null,null,null,"依頼者名",null,null,null,null,null,null,null,null,{"$f":"基本入力!O30","v":0},null,null,null,null,null,null,null,null,null,null,null,null,null,null,null,null,null,null,null,null,null,"（登録印）"]
[]
[null,"● ☆の項目は任意です。必要に応じてご記入ください。"]
[]
[]
[null,null,null,null,null,null,null,null,null,null,null,null,null,null,null,null,null,null,null,null,null,null,null,null,"連   絡   先\n電話番号",null,null,null,null,null,null,null,"（",null,null,null,null,null,"）",null,null,null,null,null,"-"]
[]
[]
[]
[]
[null,"プラン番号",null,null,null,null,null,null,null,null,null,null,null,null,null,null,null,null,null,null,null,"プラン名"]
[]
[]
[null,"企業コード"]
[]
[]
[null,"企業名",null,null,null,null,null,null,null,null,{"$f":"基本入力!O19","v":0}]
[]
[]
[]
[null,null,null,"適用",null,null,null,null,null,null,null,"ユーザー名",null,null,null,null,null,null,null,null,null,null,null,null,null,null,null,null,null,null,"ユーザー設定"]
[]
[]
[null,"１",null,null,null,null,null,null,null,null,null,"フリガナ",null,null,null,null,null,null,null,null,null,null,null,null,null,null,null,null,null,null,"メールアドレス\n（携帯不可）※1",null,null,null,null,null,null,null,null,null,null,null,null,null,null,null,null,null,null,null,null,null,null,"@"]
[]
[null,null,null,"WEB事務ID発行",null,null,null,null,null,null,null,null,null,null,null,null,null,null,null,null,null,null,null,null,null,null,null,null,null,null,"ＷＥＢ事務ＩＤ",null,null,null,null,null,null,null,"新規発行"]
[null,null,null,null,null,null,null,null,null,null,null,null,null,null,null,null,null,null,null,null,null,null,null,null,null,null,null,null,null,null,null,null,null,null,null,null,null,null,"選択してください"]
[null,null,null,null,null,null,null,null,null,null,null,"役職名",null,null,null,null,null,null,null,null,null,null,null,null,null,null,null,null,null,null,"所属部署名"]
[]
[null,"2",null,null,null,null,null,null,null,null,null,"フリガナ",null,null,null,null,null,null,null,null,null,null,null,null,null,null,null,null,null,null,"メールアドレス\n（携帯不可）※1",null,null,null,null,null,null,null,null,null,null,null,null,null,null,null,null,null,null,null,null,null,null,"@"]
[]
[null,null,null,"選択してください",null,null,null,null,null,null,null,null,null,null,null,null,null,null,null,null,null,null,null,null,null,null,null,null,null,null,"ＷＥＢ事務ＩＤ",null,null,null,null,null,null,null,"選択してください"]
[null,null,null,null,null,null,null,null,null,null,null,null,null,null,null,null,null,null,null,null,null,null,null,null,null,null,null,null,null,null,null,null,null,null,null,null,null,null,"選択してください"]
[null,null,null,null,null,null,null,null,null,null,null,"役職名",null,null,null,null,null,null,null,null,null,null,null,null,null,null,null,null,null,null,"所属部署名"]
[]
[null,"3",null,null,null,null,null,null,null,null,null,"フリガナ",null,null,null,null,null,null,null,null,null,null,null,null,null,null,null,null,null,null,"メールアドレス\n（携帯不可）※1",null,null,null,null,null,null,null,null,null,null,null,null,null,null,null,null,null,null,null,null,null,null,"@"]
[]
[null,null,null,"選択してください",null,null,null,null,null,null,null,null,null,null,null,null,null,null,null,null,null,null,null,null,null,null,null,null,null,null,"ＷＥＢ事務ＩＤ",null,null,null,null,null,null,null,"選択してください"]
[null,null,null,null,null,null,null,null,null,null,null,null,null,null,null,null,null,null,null,null,null,null,null,null,null,null,null,null,null,null,null,null,null,null,null,null,null,null,"選択してください"]
[null,null,null,null,null,null,null,null,null,null,null,"役職名",null,null,null,null,null,null,null,null,null,null,null,null,null,null,null,null,null,null,"所属部署名"]
[]
[null,"4",null,null,null,null,null,null,null,null,null,"フリガナ",null,null,null,null,null,null,null,null,null,null,null,null,null,null,null,null,null,null,"メールアドレス\n（携帯不可）※1",null,null,null,null,null,null,null,null,null,null,null,null,null,null,null,null,null,null,null,null,null,null,"@"]
[]
[null,null,null,"選択してください",null,null,null,null,null,null,null,null,null,null,null,null,null,null,null,null,null,null,null,null,null,null,null,null,null,null,"ＷＥＢ事務ＩＤ",null,null,null,null,null,null,null,"選択してください"]
[null,null,null,null,null,null,null,null,null,null,null,null,null,null,null,null,null,null,null,null,null,null,null,null,null,null,null,null,null,null,null,null,null,null,null,null,null,null,"選択してください"]
[null,null,null,null,null,null,null,null,null,null,null,"役職名",null,null,null,null,null,null,null,null,null,null,null,null,null,null,null,null,null,null,"所属部署名"]
[]
[null,null,"注",null,"ＮＲＫＷｅｂサイトのユーザーＩＤ発行は別途ご提出ください。"]
[null,null,null,null,"『担当者登録のみ』を選択した場合は、事務センターからのお知らせ等がメールにて配信されます。"]
[null,null,null,null,"ダウンロード機能を利用する場合には、「ＷＥＢ事務利用申込書」によりダウンロード機能を設定することが前提となります。"]
[null,null,null,null,"ダウンロードの権限を分ける場合には、ダウンロード（申請）もしくはダウンロード（承認）のいずれかを選択してください。"]
[null,null,null,null,"共用メールアドレスの登録を推奨します。"]
[]
[null,"＜登録内容変更＞",null,null,null,null,null,null,null,null,null,null,null,"すでに登録されている方の登録内容を変更する場合は、以下にご記入ください。"]
[null,"ユーザー名",null,null,null,null,null,null,null,null,null,null,null,null,null,null,null,null,null,null,null,null,null,"変更項目",null,null,null,null,null,null,null,null,null,null,null,null,"変更後内容"]
[]
[]
[]
[]
[]
[]
[]
[]
[null,"＜その他通信欄・備考＞"]
[]
[]
[]
[]
[]
[null,null,null,null,null,null,null,null,null,null,null,null,null,null,null,null,null,null,null,null,null,null,null,null,null,null,null,null,null,null,null,null,null,null,null,null,"運営管理機関使用欄",null,null,null,null,null,null,null,null,null,null,null,null,null,null,null,null,"企業使用欄"]
[]
[]
[]
[]
[null,null,null,null,null,null,null,null,null,null,null,null,null,null,null,null,null,null,null,null,null,null,null,null,null,null,null,null,null,null,null,null,null,null,null,null,null,null,null,null,null,null,null,null,null,null,null,null,null,null,null,null,null,null,null,null,null,null,null,null,null,null,null,null,"20190101"]

{"sheet":"企業ﾕｰｻﾞID","index":6,"n_rows":91,"n_cols":72,"rows_kept":91,"cut":false,"hidden":false,"merged":[[59,66,63,67],[59,68,63,69],[59,70,63,71],[56,8,58,55],[54,66,58,67],[54,68,58,69],[54,70,58,71],[49,64,53,65],[49,66,53,67],[54,64,58,65],[59,60,63,61],[59,62,63,63],[59,64,63,65],[49,12,50,55],[49,56,53,57],[49,58,53,59],[49,60,53,61],[49,62,53,63],[54,60,58,61],[54,62,58,63],[64,66,68,67],[66,8,68,55],[64,5,68,7],[64,8,65,11],[64,12,65,55],[64,56,68,57],[64,58,68,59],[64,60,68,61],[82,23,84,37],[82,40,84,54],[82,57,84,71],[69,62,73,63],[69,64,73,65],[69,66,73,67],[69,68,73,69],[69,70,73,71],[71,8,73,55],[64,68,68,69],[64,70,68,71],[69,60,73,61],[64,62,68,63],[64,64,68,65],[54,5,58,7],[54,8,55,11],[54,12,55,55],[54,56,58,57],[54,58,58,59],[69,5,73,7],[69,8,70,11],[69,12,70,55],[69,56,73,57],[69,58,73,59],[59,5,63,7],[59,8,60,11],[59,12,60,55],[59,56,63,57],[59,58,63,59],[61,8,63,55],[41,22,43,23],[41,24,43,25],[41,26,43,27],[36,28,39,31],[36,32,39,34],[36,35,39,35],[49,68,53,69],[36,36,39,44],[36,45,39,71],[49,70,53,71],[51,8,53,55],[40,5,43,11],[40,28,43,34],[40,36,43,71],[41,12,43,13],[41,14,43,15],[41,16,43,17],[41,18,43,19],[41,20,43,21],[47,5,48,7],[47,8,48,55],[47,56,48,71],[49,5,53,7],[49,8,50,11],[33,26,35,27],[36,5,39,11],[36,12,39,15],[36,16,39,18],[36,19,39,19],[36,20,39,27],[32,5,35,11],[32,28,35,34],[32,36,35,71],[33,12,35,13],[33,14,35,15],[33,16,35,17],[33,18,35,19],[33,20,35,21],[33,22,35,23],[33,24,35,25],[28,5,31,11],[28,12,31,15],[28,16,31,27],[28,28,31,31],[28,32,31,44],[28,45,31,71],[9,70,9,71],[17,5,20,11],[17,41,20,47],[18,12,20,29],[18,48,20,65],[21,5,24,11],[21,41,24,47],[22,12,24,29],[22,48,24,65],[0,16,4,71],[1,8,3,15],[2,2,2,5],[9,47,9,55],[9,58,9,59],[9,60,9,61],[9,62,9,63],[9,64,9,65],[9,66,9,67],[9,68,9,69]]}
[null,null,null,null,null,null,null,null,null,null,null,null,null,null,null,null,"企業（代表企業）ユーザーＩＤ　登録依頼書（加入者属性変更用）"]
[null,null,null,null,null,null,null,null,"確定拠出年金"]
[null,null,"14041"]
[]
[]
[]
[null,null,null,null,null,"● ★のある項目は必ずご記入ください。",null,null,null,null,null,null,null,null,null,null,null,null,null,null,null,null,null,null,null,null,null,null,null,null,null,"● ☆のある項目は、コードが発番されている場合、必ずご記入ください。"]
[null,null,null,null,null,null,null,null,null,null,null,null,null,null,null,null,null,null,null,null,null,null,null,null,null,null,null,null,null,null,null,"● 選択肢のある項目については、該当する選択肢左の空欄にＶをご記入ください。"]
[]
[null,null,null,null,null,"日本レコード・キーピング・ネットワーク株式会社",null,null,null,null,null,null,null,null,null,null,null,null,null,null,null,null,null,null,null,null,null,null,null,null,null,null,null,null,null,null,null,"御中",null,null,null,null,null,null,null,null,null,"依頼年月日\n(西暦)",null,null,null,null,null,null,null,null,null,null,"20",null,null,null,"年",null,null,null,"月",null,null,null,"日"]
[]
[]
[null,null,null,null,null,"● 事業主は、加入者等に関する事項の諸通知内容の変更方法として、「運営管理業務委託契約書」にて規定する方法に加えて、Webにより"]
[null,null,null,null,null,"    NRKネットワークへ直接通知する方法を使用する場合、当通知方法の内容を十分に理解した上で、本帳票により専用のユーザIDを申し込みます。"]
[null,null,null,null,null,"● Webによる諸通知内容の変更については、全て事業主の責任に基づいて行う事に同意します。"]
[]
[]
[null,null,null,null,null,"企業\n（代表企業）\n所在地",null,null,null,null,null,null,"★",null,null,null,null,null,null,null,null,null,null,null,null,null,null,null,null,null,null,null,null,null,null,null,null,null,null,null,null,"運営管理機関\n所在地",null,null,null,null,null,null,"★"]
[null,null,null,null,null,null,null,null,null,null,null,null,{"$f":"基本入力!O27","v":0},null,null,null,null,null,null,null,null,null,null,null,null,null,null,null,null,null,null,null,null,null,"★",null,null,null,null,null,null,null,null,null,null,null,null,null,"東京都千代田区丸の内一丁目９番１号",null,null,null,null,null,null,null,null,null,null,null,null,null,null,null,null,null,null,null,null,null,"★"]
[]
[]
[null,null,null,null,null,"企業名\n（代表企業）",null,null,null,null,null,null,"★",null,null,null,null,null,null,null,null,null,null,null,null,null,null,null,null,null,null,null,null,null,null,null,null,null,null,null,null,"運営管理\n機関名",null,null,null,null,null,null,"★"]
[null,null,null,null,null,null,null,null,null,null,null,null,{"$f":"基本入力!O19","v":0},null,null,null,null,null,null,null,null,null,null,null,null,null,null,null,null,null,null,null,null,null,null,null,null,null,null,null,null,null,null,null,null,null,null,null,"大和証券株式会社"]
[]
[]
[]
[null,null,null,null,null,"ユーザー区分ごとにご記入ください。"]
[]
["▽0117",null,null,null,null," ユーザー区分★ ",null,null,null,null,null,null,null,null,null,null,"2：企業",null,null,null,null,null,null,null,null,null,null,null,null,null,null,null,"3：代表企業"]
[]
[]
[]
[null,null,null,null,null,"企業コード\n（代表企業）",null,null,null,null,null,null,"☆",null,null,null,null,null,null,null,null,null,null,null,null,null,null,null,"企業名\n（代表企業）",null,null,null,null,null,null,"★",{"$f":"基本入力!O19","v":0}]
[]
[]
[]
[null,null,null,null,null,"アクセス\n権限区分★",null,null,null,null,null,null,null,null,null,null,"220",null,null,"：","企業加入者\n属性変更",null,null,null,null,null,null,null,null,null,null,null,"320",null,null,"：","代表企業加入者\n属性変更"]
[]
[]
[]
[null,null,null,null,null,"所属運営管理\n機関コード",null,null,null,null,null,null,"★",null,null,null,null,null,null,null,null,null,null,null,null,null,null,null,"所属運営管理\n機    関   名",null,null,null,null,null,null,"★","大和証券株式会社"]
[null,null,null,null,null,null,null,null,null,null,null,null,"2",null,"0",null,"0",null,"0",null,"0",null,"0",null,"0",null,"2"]
[]
[]
[]
[]
[]
[null,null,null,null,null,null,null,null,"ユーザー名  ★",null,null,null,null,null,null,null,null,null,null,null,null,null,null,null,null,null,null,null,null,null,null,null,null,null,null,null,null,null,null,null,null,null,null,null,null,null,null,null,null,null,null,null,null,null,null,null,"開始年月日(西暦) (注）"]
[]
[null,null,null,null,null,"１",null,null,"フリガナ",null,null,null,null,null,null,null,null,null,null,null,null,null,null,null,null,null,null,null,null,null,null,null,null,null,null,null,null,null,null,null,null,null,null,null,null,null,null,null,null,null,null,null,null,null,null,null,null,null,"20",null,null,null,"年",null,null,null,"月",null,null,null,"日"]
[]
[]
[]
[]
[null,null,null,null,null,"２",null,null,"フリガナ",null,null,null,null,null,null,null,null,null,null,null,null,null,null,null,null,null,null,null,null,null,null,null,null,null,null,null,null,null,null,null,null,null,null,null,null,null,null,null,null,null,null,null,null,null,null,null,null,null,"20",null,null,null,"年",null,null,null,"月",null,null,null,"日"]
[]
[]
[]
[]
[null,null,null,null,null,"３",null,null,"フリガナ",null,null,null,null,null,null,null,null,null,null,null,null,null,null,null,null,null,null,null,null,null,null,null,null,null,null,null,null,null,null,null,null,null,null,null,null,null,null,null,null,null,null,null,null,null,null,null,null,null,"20",null,null,null,"年",null,null,null,"月",null,null,null,"日"]
[]
[]
[]
[]
[null,null,null,null,null,"４",null,null,"フリガナ",null,null,null,null,null,null,null,null,null,null,null,null,null,null,null,null,null,null,null,null,null,null,null,null,null,null,null,null,null,null,null,null,null,null,null,null,null,null,null,null,null,null,null,null,null,null,null,null,null,"20",null,null,null,"年",null,null,null,"月",null,null,null,"日"]
[]
[]
[]
[]
[null,null,null,null,null,"５",null,null,"フリガナ",null,null,null,null,null,null,null,null,null,null,null,null,null,null,null,null,null,null,null,null,null,null,null,null,null,null,null,null,null,null,null,null,null,null,null,null,null,null,null,null,null,null,null,null,null,null,null,null,null,"20",null,null,null,"年",null,null,null,"月",null,null,null,"日"]
[]
[]
[]
[]
[]
[null,null,null,null,null,"(注）プラン設立の際は、企業別プランの適用開始日が到来するまで本ユーザーIDでログインできません。"]
[]
[]
[]
[]
[]
[null,null,null,null,null,null,null,null,null,null,null,null,null,null,null,null,null,null,null,null,null,null,null,"ＮＲＫネットワーク特記欄",null,null,null,null,null,null,null,null,null,null,null,null,null,null,null,null,"運営管理機関特記欄",null,null,null,null,null,null,null,null,null,null,null,null,null,null,null,null,"企業（代表企業）特記欄"]
[]
[]
[]
[null,null,null,null,null,null,null,null,null,null,null,null,null,null,null,null,null,null,null,null,null,null,null,"ＮＲＫネットワーク使用欄",null,null,null,null,null,null,null,null,null,null,null,null,null,null,null,null,"運営管理機関使用欄",null,null,null,null,null,null,null,null,null,null,null,null,null,null,null,null,"企業（代表企業）使用欄"]
[]
[]
[]
[]
["A0528",null,null,null,null,"企業・代表企業→運営管理機関→ＮＲＫネットワーク",null,null,null,null,null,null,null,null,null,null,null,null,null,null,null,null,null,null,null,null,null,null,null,null,null,null,null,null,null,null,null,null,null,null,null,null,null,null,null,null,null,null,null,null,null,null,null,null,null,null,null,"保存期間 5年",null,null,null,null,null,null,null,null,null,null,null,null,null,"14041①19.01"]